[Event "44th Chess Olympiad Women 2022"]
[Site "Chennai"]
[Date "2022.08.02"]
[Round "5.23"]
[White "Vargas, Gabriela"]
[Black "Narva, Mai"]
[Result "1-0"]
[ECO "A46"]
[WhiteElo "2140"]
[BlackElo "2385"]
[Annotator "RC"]
[PlyCount "59"]
[EventDate "2022.07.29"]
[EventType "team-tourn"]
[EventCountry "IND"]
[SourceTitle "playchess.com"]
[Source "ChessBase"]
[SourceQuality "1"]
[WhiteTeam "Paraguay"]
[BlackTeam "Estonia"]
[WhiteTeamCountry "PAR"]
[BlackTeamCountry "EST"]
[TimeControl "40/5400+30:1800+30"]

1. d4 {[%emt 0:00:04]} Nf6 {[%emt 0:00:19]} 2. Nf3 {[%emt 0:00:24]} e6 {[%emt 0:00:12]} 3. Bg5 {[%emt 0:00:33]} d6 {[%emt 0:00:20]} 4. Nbd2 {[%emt 0:01:11]} h6 {[%emt 0:00:20]} 5. Bh4 {[%emt 0:02:12]} g5 {[%emt 0:00:15]} 6. Bg3 {[%emt 0:00:02]} Nh5 {[%emt 0:00:25]} 7. e4 {[%emt 0:03:05]} Bg7 {[%emt 0:00:26]} 8. c3 {[%emt 0:02:19]} O-O {[%emt 0:00:33]} 9. Ng1 {[%emt 0:04:17]} Nxg3 {[%emt 0:05:02]} 10. hxg3 {[%emt 0:00:08]} Nd7 {[%emt 0:05:54]} 11. Bd3 {[%emt 0:08:48]} b6 {[%emt 0:07:19]} 12. Ne2 {[%emt 0:08:11]} Bb7 {[%emt 0:01:58]} 13. Nf1 {[%emt 0:02:32]} c5 {[%emt 0:18:31]} 14. d5 {[%emt 0:06:58]} f5 {[%emt 0:11:24]} 15. exf5 {[%emt 0:19:07]} exf5 {[%emt 0:00:59]} 16. Ne3 {[%emt 0:01:24]} f4 {[%emt 0:08:17]} 17. Ng4 {[%emt 0:03:05]} Bxd5 {[%emt 0:16:35]} 18. Bh7+ {[%emt 0:07:20]} Kxh7 {[%emt 0:18:29]} 19. Qd3+ {[%emt 0:00:17]} Kh8 {[%emt 0:00:33]} 20. Nxh6 {[%emt 0:02:36]} Qe8 {[%emt 0:01:03]} 21. Nf5+ {[%emt 0:01:27]} Kg8 {[%emt 0:00:16]} 22. Qxd5+ {[%emt 0:00:12]} Rf7 {[%emt 0:00:59]} 23. Nxd6 {[%emt 0:00:25]} Nf6 {[%emt 0:00:10]} 24. Qxf7+ {[%emt 0:00:39]} Qxf7 {[%emt 0:00:06]} 25. Nxf7 {[%emt 0:00:04]} Kxf7 {[%emt 0:00:06]} 26. gxf4 {[%emt 0:00:22]} Re8 {[%emt 0:00:53]} 27. fxg5 {[%emt 0:03:03]} Ne4 {[%emt 0:00:15]} 28. O-O-O {[%emt 0:03:25]} Kg6 {[%emt 0:00:36]} 29. Nf4+ {[%emt 0:01:05]} Kxg5 {[%emt 0:00:20]} 30. Rd5+ {[%emt 0:01:09]} 1-0

[Event "44th Chess Olympiad Women 2022"]
[Site "Chennai"]
[Date "2022.08.02"]
[Round "5.23"]
[White "Blokhin, Sofia"]
[Black "Mayeregger Gonzalez, Renata"]
[Result "1/2-1/2"]
[ECO "B01"]
[WhiteElo "1996"]
[BlackElo "1479"]
[Annotator "NA RC"]
[PlyCount "85"]
[EventDate "2022.07.29"]
[EventType "team-tourn"]
[EventCountry "IND"]
[SourceTitle "playchess.com"]
[Source "ChessBase"]
[SourceQuality "1"]
[WhiteTeam "Estonia"]
[BlackTeam "Paraguay"]
[WhiteTeamCountry "EST"]
[BlackTeamCountry "PAR"]
[TimeControl "40/5400+30:1800+30"]

1. e4 {[%emt 0:00:03]} d5 {[%emt 0:00:12]} 2. exd5 {[%emt 0:00:09]} Qxd5 {[%emt 0:00:13]} 3. Nc3 {[%emt 0:00:11]} Qa5 {[%emt 0:00:40]} 4. Nf3 {[%emt 0:00:15]} Nf6 {[%emt 0:00:17]} 5. d4 {[%emt 0:00:18]} Bg4 {[%emt 0:00:15]} 6. h3 {[%emt 0:00:30]} Bxf3 {[%emt 0:00:10]} 7. Qxf3 {[%emt 0:00:09]} c6 {[%emt 0:00:09]} 8. Bd2 {[%emt 0:01:58]} Nbd7 {[%emt 0:03:01]} 9. Bd3 {[%emt 0:07:25]} Qb6 {[%emt 0:05:56]} 10. O-O {[%emt 0:14:10]} e6 {[%emt 0:03:16]} 11. Ne2 {[%emt 0:04:49]} Bd6 {[%emt 0:09:33]} 12. c4 {[%emt 0:12:26]} Qd8 {[%emt 0:14:53]} 13. Ng3 {[%emt 0:02:41]} O-O {[%emt 0:03:43]} 14. Rfe1 {[%emt 0:02:16]} e5 {[%emt 0:07:08]} 15. Nf5 {[%emt 0:07:01]} Bc7 {[%emt 0:12:12]} 16. Bc3 {[%emt 0:12:08]} Re8 {[%emt 0:04:46]} 17. Rad1 {[%emt 0:07:07]} exd4 {[%emt 0:07:00]} 18. Bxd4 {[%emt 0:00:47]} Ne5 {[%emt 0:01:27]} 19. Bxe5 {[%emt 0:00:49]} Bxe5 {[%emt 0:00:38]} 20. Rxe5 {[%emt 0:06:49]} Rxe5 {[%emt 0:02:27]} 21. Nxg7 {[%emt 0:02:38]} Kxg7 {[%emt 0:01:48]} 22. Qg3+ {[%emt 0:00:07]} Ng4 {[%emt 0:00:22]} 23. hxg4 {[%emt 0:02:18]} Qe7 {[%emt 0:01:29]} 24. Kh2 {[%emt 0:03:19]} Re8 {[%emt 0:01:53]} 25. Bf5 {[%emt 0:00:35]} Qf6 {[%emt 0:01:36]} 26. Qc3 {[%emt 0:01:27]} Re1 {[%emt 0:05:24]} 27. Rd3 {[%emt 0:06:16]} Qxc3 {[%emt 0:00:44]} 28. Rxc3 {[%emt 0:00:07]} R1e2 {[%emt 0:01:00]} 29. Rh3 {[%emt 0:01:51]} h6 {[%emt 0:01:02]} 30. Rb3 {[%emt 0:00:52]} Rxf2 {[%emt 0:01:34]} 31. Kg3 {[%emt 0:00:32]} Ree2 {[%emt 0:00:44]} 32. Rxb7 {[%emt 0:00:11]} Rxg2+ {[%emt 0:00:19]} 33. Kf3 {[%emt 0:01:00]} Rxb2 {[%emt 0:00:44]} 34. Rxa7 {[%emt 0:00:18]} Rxa2 {[%emt 0:01:12]} 35. Rc7 {[%emt 0:00:48]} Raf2+ {[%emt 0:02:41]} 36. Ke4 {[%emt 0:00:57]} Rxf5 {[%emt 0:07:21]} 37. Kxf5 {[%emt 0:00:46]} Rf2+ {[%emt 0:00:09]} 38. Ke5 {[%emt 0:02:24]} Rf6 {[%emt 0:00:15]} 39. Rc8 {[%emt 0:00:38]} Rg6 {[%emt 0:00:23]} 40. Kf4 {[%emt 0:00:34]} Rd6 {[%emt 0:00:53]} 41. Ke5 {[%emt 0:30:21]} Rg6 {[%emt 0:01:06]} 42. Kf4 {[%emt 0:00:00]} Rf6+ {[%emt 0:04:21]} 43. Ke5 {[%emt 0:00:00]} 1/2-1/2

[Event "44th Chess Olympiad Women 2022"]
[Site "Chennai"]
[Date "2022.08.02"]
[Round "5.23"]
[White "Perez, Dalila"]
[Black "Narva, Triin"]
[Result "1/2-1/2"]
[ECO "E69"]
[WhiteElo "1799"]
[BlackElo "2066"]
[Annotator "NA RC"]
[PlyCount "148"]
[EventDate "2022.07.29"]
[EventType "team-tourn"]
[EventCountry "IND"]
[SourceTitle "playchess.com"]
[Source "ChessBase"]
[SourceQuality "1"]
[WhiteTeam "Paraguay"]
[BlackTeam "Estonia"]
[WhiteTeamCountry "PAR"]
[BlackTeamCountry "EST"]
[TimeControl "40/5400+30:1800+30"]

1. d4 {[%emt 0:00:04]} Nf6 {[%emt 0:00:07]} 2. c4 {[%emt 0:00:06]} g6 {[%emt 0:00:06]} 3. Nf3 {[%emt 0:00:04]} Bg7 {[%emt 0:00:06]} 4. Nc3 {[%emt 0:00:13]} O-O {[%emt 0:00:20]} 5. g3 {[%emt 0:00:04]} d6 {[%emt 0:00:12]} 6. Bg2 {[%emt 0:00:06]} Nbd7 {[%emt 0:01:06]} 7. O-O {[%emt 0:00:16]} e5 {[%emt 0:01:40]} 8. e4 {[%emt 0:01:15]} Re8 {[%emt 0:01:41]} 9. Re1 {[%emt 0:01:14]} c6 {[%emt 0:01:53]} 10. h3 {[%emt 0:00:52]} h6 {[%emt 0:13:01]} 11. Be3 {[%emt 0:03:04]} Qe7 {[%emt 0:10:22]} 12. Qc2 {[%emt 0:07:27]} b6 {[%emt 0:19:26]} 13. b4 {[%emt 0:34:05]} Bb7 {[%emt 0:06:34]} 14. Rab1 {[%emt 0:08:16]} Nh5 {[%emt 0:16:31]} 15. Qd2 {[%emt 0:17:31]} g5 {[%emt 0:15:30]} 16. d5 {[%emt 0:05:23]} c5 {[%emt 0:03:53]} 17. b5 {[%emt 0:01:58]} Nf8 {[%emt 0:02:49]} 18. Qe2 {[%emt 0:09:22]} Nf6 {[%emt 0:01:07]} 19. Nh2 {[%emt 0:02:21]} Ng6 {[%emt 0:00:28]} 20. Bd2 {[%emt 0:00:37]} Bc8 {[%emt 0:00:29]} 21. Nf1 {[%emt 0:00:24]} Nh7 {[%emt 0:01:58]} 22. Ne3 {[%emt 0:00:46]} Qf6 {[%emt 0:00:29]} 23. a4 {[%emt 0:00:35]} Ne7 {[%emt 0:00:20]} 24. a5 {[%emt 0:00:55]} Nf8 {[%emt 0:01:29]} 25. Ra1 {[%emt 0:00:33]} Bd7 {[%emt 0:00:30]} 26. Ra2 {[%emt 0:00:44]} Rab8 {[%emt 0:00:36]} 27. Rea1 {[%emt 0:01:42]} Qg6 {[%emt 0:00:32]} 28. g4 {[%emt 0:02:12]} Qf6 {[%emt 0:00:14]} 29. Nf5 {[%emt 0:00:08]} Neg6 {[%emt 0:00:21]} 30. Qf3 {[%emt 0:01:25]} Nf4 {[%emt 0:00:26]} 31. axb6 {[%emt 0:00:26]} axb6 {[%emt 0:00:03]} 32. Ra7 {[%emt 0:00:09]} Bc8 {[%emt 0:01:32]} 33. Ne2 {[%emt 0:00:21]} N8g6 {[%emt 0:00:33]} 34. Neg3 {[%emt 0:01:01]} Bf8 {[%emt 0:00:32]} 35. Nh5 {[%emt 0:00:27]} Nxh5 {[%emt 0:00:26]} 36. gxh5 {[%emt 0:00:25]} Bxf5 {[%emt 0:00:35]} 37. hxg6 {[%emt 0:00:27]} fxg6 {[%emt 0:00:06]} 38. exf5 {[%emt 0:00:20]} gxf5 {[%emt 0:00:09]} 39. Qh5 {[%emt 0:00:42]} e4 {[%emt 0:00:33]} 40. Bc1 {[%emt 0:00:55]} f4 {[%emt 0:00:34]} 41. Bb2 {[%emt 0:03:42]} Qf5 {[%emt 0:01:52]} 42. Re1 {[%emt 0:11:29]} e3 {[%emt 0:07:52]} 43. fxe3 {[%emt 0:02:03]} Rxe3 {[%emt 0:00:25]} 44. Rxe3 {[%emt 0:00:06]} fxe3 {[%emt 0:00:05]} 45. Qf3 {[%emt 0:00:11]} Qb1+ {[%emt 0:02:28]} 46. Kh2 {[%emt 0:01:34]} Qg6 {[%emt 0:00:21]} 47. Qxe3 {[%emt 0:00:17]} Re8 {[%emt 0:01:34]} 48. Qf3 {[%emt 0:03:24]} h5 {[%emt 0:07:05]} 49. Qf6 {[%emt 0:01:10]} Qxf6 {[%emt 0:01:10]} 50. Bxf6 {[%emt 0:00:04]} g4 {[%emt 0:00:13]} 51. hxg4 {[%emt 0:00:35]} hxg4 {[%emt 0:00:05]} 52. Kg3 {[%emt 0:00:21]} Re2 {[%emt 0:00:34]} 53. Bf1 {[%emt 0:02:16]} Re1 {[%emt 0:00:16]} 54. Ra1 {[%emt 0:00:46]} Re4 {[%emt 0:00:36]} 55. Bd8 {[%emt 0:06:50]} Bg7 {[%emt 0:00:51]} 56. Ra2 {[%emt 0:00:23]} Be5+ {[%emt 0:01:59]} 57. Kg2 {[%emt 0:01:41]} g3 {[%emt 0:01:48]} 58. Bd3 {[%emt 0:01:01]} Rf4 {[%emt 0:02:10]} 59. Rc2 {[%emt 0:01:05]} Kf7 {[%emt 0:04:58]} 60. Bxb6 {[%emt 0:01:28]} Ke7 {[%emt 0:01:27]} 61. Ba5 {[%emt 0:00:57]} Rh4 {[%emt 0:01:16]} 62. Bf5 {[%emt 0:00:14]} Rh2+ {[%emt 0:02:23]} 63. Kf3 {[%emt 0:00:01]} Rh1 {[%emt 0:00:18]} 64. Kg2 {[%emt 0:00:36]} Rh2+ {[%emt 0:00:11]} 65. Kf3 {[%emt 0:00:02]} Rh1 {[%emt 0:00:04]} 66. Be6 {[%emt 0:00:30]} Ra1 {[%emt 0:00:54]} 67. Bd2 {[%emt 0:01:28]} Rf1+ {[%emt 0:01:09]} 68. Kg2 {[%emt 0:00:32]} Rf2+ {[%emt 0:00:28]} 69. Kg1 {[%emt 0:00:47]} Bf4 {[%emt 0:00:34]} 70. Bf5 {[%emt 0:00:31]} Bxd2 {[%emt 0:00:22]} 71. Bh3 {[%emt 0:00:12]} Kd8 {[%emt 0:00:39]} 72. b6 {[%emt 0:00:26]} Ba5 {[%emt 0:00:28]} 73. Rxf2 {[%emt 0:00:08]} gxf2+ {[%emt 0:00:04]} 74. Kxf2 {[%emt 0:00:04]} Bxb6 {[%emt 0:00:05]} 1/2-1/2

[Event "44th Chess Olympiad Women 2022"]
[Site "Chennai"]
[Date "2022.08.02"]
[Round "5.24"]
[White "Rogule, Laura"]
[Black "Tsolakidou, Stavroula"]
[Result "0-1"]
[ECO "D47"]
[WhiteElo "2292"]
[BlackElo "2362"]
[Annotator "RC"]
[PlyCount "86"]
[EventDate "2022.07.29"]
[EventType "team-tourn"]
[EventCountry "IND"]
[SourceTitle "playchess.com"]
[Source "ChessBase"]
[SourceQuality "1"]
[WhiteTeam "Latvia"]
[BlackTeam "Greece"]
[WhiteTeamCountry "LAT"]
[BlackTeamCountry "GRE"]
[TimeControl "40/5400+30:1800+30"]

1. d4 {[%emt 0:00:04]} d5 {[%emt 0:00:30]} 2. c4 {[%emt 0:00:14]} c6 {[%emt 0:00:05]} 3. Nc3 {[%emt 0:02:26]} Nf6 {[%emt 0:00:08]} 4. Nf3 {[%emt 0:01:53]} e6 {[%emt 0:00:14]} 5. e3 {[%emt 0:02:35]} Nbd7 {[%emt 0:00:16]} 6. Bd3 {[%emt 0:01:58]} dxc4 {[%emt 0:00:28]} 7. Bxc4 {[%emt 0:00:05]} b5 {[%emt 0:00:06]} 8. Bd3 {[%emt 0:00:19]} Bd6 {[%emt 0:00:20]} 9. Qc2 {[%emt 0:18:48]} Bb7 {[%emt 0:01:13]} 10. Bd2 {[%emt 0:07:49]} Rc8 {[%emt 0:25:04]} 11. a3 {[%emt 0:11:20]} a5 {[%emt 0:11:40]} 12. O-O {[%emt 0:16:32]} O-O {[%emt 0:02:53]} 13. Ng5 {[%emt 0:04:41]} c5 {[%emt 0:17:43]} 14. Bxh7+ {[%emt 0:13:02]} Kh8 {[%emt 0:00:05]} 15. Nxb5 {[%emt 0:09:23]} Bb8 {[%emt 0:11:14]} 16. d5 {[%emt 0:01:08]} Ne5 {[%emt 0:16:18]} 17. dxe6 {[%emt 0:03:19]} Qd5 {[%emt 0:00:48]} 18. e4 {[%emt 0:00:50]} Qc4 {[%emt 0:01:47]} 19. Qxc4 {[%emt 0:01:33]} Nxc4 {[%emt 0:00:04]} 20. e7 {[%emt 0:01:01]} Nxd2 {[%emt 0:03:47]} 21. exf8=Q+ {[%emt 0:01:01]} Rxf8 {[%emt 0:00:06]} 22. Rfd1 {[%emt 0:00:13]} Nb3 {[%emt 0:00:17]} 23. Bf5 {[%emt 0:00:57]} Nxa1 {[%emt 0:00:10]} 24. Rxa1 {[%emt 0:00:34]} g6 {[%emt 0:01:26]} 25. Bh3 {[%emt 0:00:19]} Bf4 {[%emt 0:03:14]} 26. Nf3 {[%emt 0:00:19]} Bxe4 {[%emt 0:00:09]} 27. Ne1 {[%emt 0:00:46]} Rd8 {[%emt 0:00:53]} 28. Nc3 {[%emt 0:00:30]} Rd2 {[%emt 0:01:57]} 29. b3 {[%emt 0:00:24]} Bc6 {[%emt 0:00:56]} 30. g3 {[%emt 0:00:31]} Be5 {[%emt 0:00:19]} 31. Rc1 {[%emt 0:00:19]} Bd4 {[%emt 0:00:54]} 32. Nd1 {[%emt 0:00:04]} a4 {[%emt 0:00:44]} 33. bxa4 {[%emt 0:00:17]} Bxa4 {[%emt 0:00:10]} 34. Ne3 {[%emt 0:00:19]} Ra2 {[%emt 0:00:23]} 35. N1c2 {[%emt 0:01:01]} Ne4 {[%emt 0:00:23]} 36. Nxd4 {[%emt 0:01:14]} cxd4 {[%emt 0:00:05]} 37. Nd1 {[%emt 0:00:28]} Bxd1 {[%emt 0:01:28]} 38. Rxd1 {[%emt 0:00:06]} Nxf2 {[%emt 0:00:03]} 39. Rxd4 {[%emt 0:00:16]} Nxh3+ {[%emt 0:00:04]} 40. Kh1 {[%emt 0:00:19]} g5 {[%emt 0:00:28]} 41. Rc4 {[%emt 0:31:14]} f5 {[%emt 0:30:32]} 42. a4 {[%emt 0:00:14]} Ra1+ {[%emt 0:00:29]} 43. Kg2 {[%emt 0:00:14]} g4 {[%emt 0:00:02]} 0-1

[Event "44th Chess Olympiad Women 2022"]
[Site "Chennai"]
[Date "2022.08.02"]
[Round "5.24"]
[White "Avramidou, Anastasia"]
[Black "Berzina, Ilze"]
[Result "1-0"]
[ECO "C60"]
[WhiteElo "2274"]
[BlackElo "2141"]
[Annotator "NA RC"]
[PlyCount "65"]
[EventDate "2022.07.29"]
[EventType "team-tourn"]
[EventCountry "IND"]
[SourceTitle "playchess.com"]
[Source "ChessBase"]
[SourceQuality "1"]
[WhiteTeam "Greece"]
[BlackTeam "Latvia"]
[WhiteTeamCountry "GRE"]
[BlackTeamCountry "LAT"]
[TimeControl "40/5400+30:1800+30"]

1. e4 {[%emt 0:00:04]} e5 {[%emt 0:00:17]} 2. Nf3 {[%emt 0:00:10]} Nc6 {[%emt 0:00:12]} 3. Bb5 {[%emt 0:00:13]} g6 {[%emt 0:00:35]} 4. c3 {[%emt 0:01:12]} d6 {[%emt 0:00:46]} 5. d4 {[%emt 0:02:27]} Bd7 {[%emt 0:00:31]} 6. Qb3 {[%emt 0:25:07]} exd4 {[%emt 0:21:18]} 7. cxd4 {[%emt 0:01:08]} Bg7 {[%emt 0:06:37]} 8. O-O {[%emt 0:16:25]} Nge7 {[%emt 0:15:31]} 9. d5 {[%emt 0:12:44]} Nb8 {[%emt 0:08:22]} 10. Nc3 {[%emt 0:02:15]} O-O {[%emt 0:01:37]} 11. Bxd7 {[%emt 0:06:44]} Nxd7 {[%emt 0:00:10]} 12. Qxb7 {[%emt 0:00:11]} Nc5 {[%emt 0:02:30]} 13. Qb4 {[%emt 0:01:49]} f5 {[%emt 0:10:40]} 14. e5 {[%emt 0:05:27]} Nd3 {[%emt 0:11:08]} 15. Qh4 {[%emt 0:00:07]} dxe5 {[%emt 0:00:26]} 16. Ng5 {[%emt 0:00:15]} h5 {[%emt 0:02:11]} 17. Qc4 {[%emt 0:08:18]} Nxc1 {[%emt 0:00:36]} 18. d6+ {[%emt 0:04:17]} Kh8 {[%emt 0:00:07]} 19. dxe7 {[%emt 0:00:05]} Qxe7 {[%emt 0:00:10]} 20. h4 {[%emt 0:00:04]} Bh6 {[%emt 0:07:13]} 21. Raxc1 {[%emt 0:00:37]} Bxg5 {[%emt 0:00:17]} 22. hxg5 {[%emt 0:00:05]} Qxg5 {[%emt 0:00:07]} 23. Qxc7 {[%emt 0:01:06]} Rae8 {[%emt 0:00:24]} 24. Rcd1 {[%emt 0:03:41]} Re7 {[%emt 0:00:28]} 25. Rd7 {[%emt 0:01:54]} Rxd7 {[%emt 0:00:58]} 26. Qxd7 {[%emt 0:00:05]} h4 {[%emt 0:00:26]} 27. Qe6 {[%emt 0:02:10]} e4 {[%emt 0:00:40]} 28. Qe5+ {[%emt 0:00:18]} Kh7 {[%emt 0:01:32]} 29. Nxe4 {[%emt 0:00:24]} Qd8 {[%emt 0:02:15]} 30. Nc5 {[%emt 0:00:42]} Re8 {[%emt 0:00:45]} 31. Ne6 {[%emt 0:00:57]} Qd7 {[%emt 0:01:02]} 32. Re1 {[%emt 0:00:16]} Rc8 {[%emt 0:02:09]} 33. Qf6 {[%emt 0:00:57]} 1-0

[Event "44th Chess Olympiad Women 2022"]
[Site "Chennai"]
[Date "2022.08.02"]
[Round "5.24"]
[White "Makka, Ioulia"]
[Black "Maklakova, Nellija"]
[Result "1-0"]
[ECO "C17"]
[WhiteElo "1975"]
[BlackElo "1819"]
[Annotator "TA"]
[PlyCount "101"]
[EventDate "2022.07.29"]
[EventType "team-tourn"]
[EventCountry "IND"]
[SourceTitle "playchess.com"]
[Source "ChessBase"]
[SourceQuality "1"]
[WhiteTeam "Greece"]
[BlackTeam "Latvia"]
[WhiteTeamCountry "GRE"]
[BlackTeamCountry "LAT"]
[TimeControl "40/5400+30:1800+30"]

{[%evp 12,101,31,17,31,14,53,39,60,43,59,40,110,62,91,68,132,83,66,32,35,0,140,143,150,147,166,173,133,159,155,152,233,239,231,233,207,188,435,433,427,420,481,478,567,15,16,16,271,289,283,266,280,280,293,284,282,292,327,327,327,327,327,324,450,441,441,437,435,433,433,422,433,428,417,358,466,444,444,392,390,382,537,522,614,614,607,599,983,970,808,797]} 1. e4 {[%emt 0:00:04]} e6 {[%emt 0:00:08]} 2. d4 {[%emt 0:00:08]} d5 {[%emt 0:00:14]} 3. Nc3 {[%emt 0:00:08]} Bb4 {[%emt 0:00:57]} 4. e5 {[%emt 0:02:16]} c5 {[%emt 0:06:03]} 5. Bd2 {[%emt 0:00:46]} cxd4 {[%emt 0:03:21]} 6. Nb5 {[%emt 0:00:41]} Bc5 {[%emt 0:04:06]} 7. b4 {[%emt 0:27:57][%mdl 64] Deflection} Bf8 {[%emt 0:03:39] C17: French: 3 Nc3 Bb4 4 e5 c5 sidelines.} 8. Nxd4 {[%emt 0:05:03]} Bd7 {[%emt 0:02:34] [#]} 9. Ngf3 $146 {[%emt 0:10:03]} ({Predecessor:} 9. Qg4 Ne7 10. Ngf3 Qc7 11. Bd3 a6 12. O-O Nbc6 13. Rfe1 Qb6 14. a3 Nxd4 15. Qxd4 {1-0 (39) Schammo,J-Ciezkowsky,J Buenos Aires 1978}) 9... Nc6 {[%emt 0:02:00] White is slightly better.} 10. Nxc6 {[%emt 0:06:09]} bxc6 {[%emt 0:00:41]} 11. Bd3 {[%emt 0:00:54]} f5 {[%emt 0:08:33]} (11... c5 $14) 12. h4 {[%emt 0:06:40]} (12. O-O $16) 12... Qc7 {[%emt 0:04:26][%cal Oa7a5]} 13. Qe2 {[%emt 0:06:58]} Ne7 {[%emt 0:02:51]} (13... c5 $14) 14. c3 {[%emt 0:05:30] White is more active.} (14. O-O $142) 14... c5 $16 {[%emt 0:02:39]} 15. bxc5 {[%emt 0:01:20]} (15. c4 $5 {[%cal Rb4c5]}) 15... Nc6 {[%emt 0:05:52]} 16. c4 {[%emt 0:02:01] And now cxd5 would win.} dxc4 {[%emt 0:01:09]} (16... d4 $11 {remains equal.}) 17. Bxc4 {[%emt 0:00:15]} Bxc5 {[%emt 0:00:14]} 18. O-O $1 {[%emt 0:02:40][%cal Bh1f1,Bf1e1,Be1d1][%mdl 32]} Nd4 {[%emt 0:12:56]} 19. Nxd4 {[%emt 0:01:41]} Bxd4 {[%emt 0:00:04]} 20. Rac1 $36 {[%emt 0:06:04][%cal Oc4e6][%mdl 2048] Bxe6! is the strong threat. White is in control.} Qxe5 {[%emt 0:02:33]} 21. Qf3 {[%emt 0:03:13]} O-O {[%emt 0:07:10]} (21... Qe4 $16 {keeps fighting.}) 22. Rfe1 $18 {[%emt 0:00:38][%mdl 1024] White has strong compensation.} Qd6 {[%emt 0:03:43]} 23. Bf4 {[%emt 0:04:00]} Qb6 {[%emt 0:03:01]} 24. Rb1 {[%emt 0:01:35]} Qa5 {[%emt 0:08:37] [#]} (24... Qc5 {is a better defense.} 25. Rec1 (25. Bxe6+ Bxe6 26. Rxe6 Rae8 $11) 25... Qe7) 25. Red1 $1 {[%emt 0:01:37]} Qc5 {[%emt 0:01:03]} 26. Rbc1 {[%emt 0:00:33]} Qb6 {[%emt 0:00:09] [#]} 27. Bc7 $1 {[%emt 0:01:43][%mdl 512]} Qb2 {[%emt 0:01:57]} (27... Qxc7 28. Bxe6+) 28. Qe2 $2 {[%emt 0:01:03]} ({White should try} 28. Bb3 $18 {Threatens to win with Rc2.} Bb6 29. Rc2) 28... Qxe2 $11 {[%emt 0:03:19]} (28... Ba4 {looks sharper.} 29. Bxe6+ Kh8 30. Re1 Rae8) 29. Bxe2 {[%emt 0:00:02]} Bb2 {[%emt 0:00:11][%mdl 8192] This move loses the game for Black.} (29... e5 $1 $11 {and Black stays safe.}) 30. Rb1 {[%emt 0:00:57]} Ba4 {[%emt 0:00:39]} 31. Rxb2 {[%emt 0:00:29]} Bxd1 {[%emt 0:00:05]} 32. Bxd1 {[%emt 0:00:08]} Rac8 {[%emt 0:01:30]} 33. Bf4 {[%emt 0:00:11]} Rc4 {[%emt 0:02:48]} 34. g3 {[%emt 0:00:43]} Rd8 {[%emt 0:02:50]} 35. Bb3 {[%emt 0:00:40]} Rc6 {[%emt 0:00:06]} 36. Re2 {[%emt 0:01:18]} Kf7 {[%emt 0:00:07]} 37. Re5 {[%emt 0:01:03]} h6 {[%emt 0:00:35]} 38. Rxf5+ {[%emt 0:01:04]} Ke7 {[%emt 0:01:17]} 39. Ra5 {[%emt 0:00:40]} a6 {[%emt 0:00:07]} 40. Re5 {[%emt 0:00:27]} Kf6 {[%emt 0:00:53]} 41. Re2 {[%emt 0:30:46]} g5 {[%emt 0:30:31]} 42. hxg5+ {[%emt 0:00:00]} hxg5 {[%emt 0:00:00]} 43. Be3 {[%emt 0:00:00]} g4 {[%emt 0:00:00]} 44. Re1 {[%emt 0:00:00]} e5 {[%emt 0:00:00]} 45. Kf1 {[%emt 0:00:00]} Kf5 {[%emt 0:00:00]} 46. Ke2 {[%emt 0:00:00]} Rb8 {[%emt 0:00:00]} (46... Rcc8 {was worth a try.} 47. Bd2 Rh8) 47. Rh1 $18 {[%emt 0:00:00] White is clearly winning.} a5 {[%emt 0:00:00]} 48. Rh5+ {[%emt 0:00:00]} Ke4 {[%emt 0:00:00]} 49. Rg5 {[%emt 0:00:00]} Rxb3 {[%emt 0:00:00]} 50. axb3 {[%emt 0:00:00]} Rc2+ {[%emt 0:00:00]} 51. Bd2 {[%emt 0:00:00] Weighted Error Value: White=0.27 (precise) /Black=0.51} 1-0

[Event "44th Chess Olympiad Women 2022"]
[Site "Chennai"]
[Date "2022.08.02"]
[Round "5.24"]
[White "Ter-Avetisjana, Agnesa Stepania"]
[Black "Pavlidou, Ekaterini"]
[Result "0-1"]
[ECO "B22"]
[WhiteElo "1962"]
[BlackElo "2138"]
[Annotator "NA RC"]
[PlyCount "82"]
[EventDate "2022.07.29"]
[EventType "team-tourn"]
[EventCountry "IND"]
[SourceTitle "playchess.com"]
[Source "ChessBase"]
[SourceQuality "1"]
[WhiteTeam "Latvia"]
[BlackTeam "Greece"]
[WhiteTeamCountry "LAT"]
[BlackTeamCountry "GRE"]
[TimeControl "40/5400+30:1800+30"]

1. e4 {[%emt 0:00:02]} c5 {[%emt 0:00:34]} 2. c3 {[%emt 0:00:05]} d5 {[%emt 0:01:05]} 3. exd5 {[%emt 0:00:08]} Qxd5 {[%emt 0:00:52]} 4. d4 {[%emt 0:00:08]} Nc6 {[%emt 0:00:53]} 5. Nf3 {[%emt 0:00:23]} Bg4 {[%emt 0:00:36]} 6. Be2 {[%emt 0:02:20]} cxd4 {[%emt 0:00:32]} 7. cxd4 {[%emt 0:01:13]} e6 {[%emt 0:00:15]} 8. Nc3 {[%emt 0:00:49]} Bb4 {[%emt 0:00:19]} 9. O-O {[%emt 0:00:19]} Qa5 {[%emt 0:01:30]} 10. Bd2 {[%emt 0:04:55]} Nge7 {[%emt 0:04:32]} 11. a3 {[%emt 0:04:44]} Bxc3 {[%emt 0:01:07]} 12. bxc3 {[%emt 0:01:12]} O-O {[%emt 0:02:17]} 13. h3 {[%emt 0:05:50]} Bh5 {[%emt 0:02:15]} 14. g4 {[%emt 0:05:34]} Bg6 {[%emt 0:00:20]} 15. Nh4 {[%emt 0:00:44]} Rad8 {[%emt 0:06:20]} 16. Nxg6 {[%emt 0:02:53]} hxg6 {[%emt 0:07:18]} 17. Rb1 {[%emt 0:07:30]} Qxa3 {[%emt 0:13:21]} 18. Rxb7 {[%emt 0:06:04]} Nd5 {[%emt 0:15:36]} 19. Rb3 {[%emt 0:05:41]} Qd6 {[%emt 0:01:55]} 20. Bc1 {[%emt 0:08:23]} Qc7 {[%emt 0:12:43]} 21. Ba3 {[%emt 0:08:59]} Rfe8 {[%emt 0:01:15]} 22. Bb5 {[%emt 0:03:08]} Rb8 {[%emt 0:06:26]} 23. c4 {[%emt 0:02:59]} Nf4 {[%emt 0:02:11]} 24. Bc1 {[%emt 0:22:11]} Nxd4 {[%emt 0:01:28]} 25. Bxf4 {[%emt 0:03:44]} Qxf4 {[%emt 0:00:11]} 26. Rd3 {[%emt 0:00:22]} Nxb5 {[%emt 0:02:37]} 27. cxb5 {[%emt 0:00:05]} Rxb5 {[%emt 0:00:06]} 28. Rd4 {[%emt 0:00:36]} Qb8 {[%emt 0:00:20]} 29. Qa4 {[%emt 0:00:35]} Rc8 {[%emt 0:04:16]} 30. Rfd1 {[%emt 0:00:57]} Rb1 {[%emt 0:01:08]} 31. Rxb1 {[%emt 0:01:10]} Qxb1+ {[%emt 0:00:08]} 32. Kg2 {[%emt 0:00:11]} Qb7+ {[%emt 0:07:16]} 33. f3 {[%emt 0:00:10]} Qb2+ {[%emt 0:01:09]} 34. Kg3 {[%emt 0:00:08]} Rc2 {[%emt 0:01:22]} 35. Kh4 {[%emt 0:02:44]} Rg2 {[%emt 0:01:23]} 36. Rd8+ {[%emt 0:00:58]} Kh7 {[%emt 0:00:05]} 37. Qd4 {[%emt 0:00:13]} Qxd4 {[%emt 0:01:31]} 38. Rxd4 {[%emt 0:00:05]} f6 {[%emt 0:00:42]} 39. f4 {[%emt 0:00:27]} e5 {[%emt 0:00:30]} 40. Rd7 {[%emt 0:01:16]} exf4 {[%emt 0:00:10]} 41. g5 {[%emt 0:30:18]} fxg5# {[%emt 0:30:40]} 0-1